bitfinex/quotes_SOLUSD_20251231
["timestamp","ask_amount","ask_price","bid_price","bid_amount"]
[1767209460287,0.65782872,124.99,124.96,15.29251253]
[1767209460481,7.99892961,125.02,124.93,16.45450816]
[1767209460482,3.86070962,124.98,124.94,3.2028809]
[1767209460690,0.65782872,124.97,124.95,0.67251253]
[1767209461296,0.65782872,124.98,124.95,0.67251253]
[1767209461688,17.8228809,125.02,124.97,3.2028809]
[1767209461895,0.65782872,125.01,124.98,0.67251253]
[1767209462275,104.6,125.03,125.0,0.67251253]
[1767209462276,105.25782872,125.03,125.0,0.67251253]
[1767209462477,0.65782872,125.03,125.0,0.67251253]
[1767209462672,3.86070962,125.03,125.0,0.67251253]
[1767209463691,0.65782872,125.02,124.99,3.87539343]
[1767209464582,0.65782872,125.02,124.99,3.2028809]
[1767209464788,0.65782872,125.02,125.0,0.67251253]
[1767209465783,0.65782872,125.03,125.0,0.67251253]
[1767209471407,0.65782872,125.03,125.0,3.87539343]
[1767209471910,11.1997858,125.05,125.01,0.67251253]
[1767209472112,0.65782872,125.04,125.01,0.67251253]
[1767209482605,7.99643223,125.06,125.03,0.71885632]
[1767209482606,0.68522478,125.06,125.03,0.71885632]
[1767209482810,0.68522478,125.06,125.03,3.92173722]
[1767209483412,0.68522478,125.06,125.03,3.2028809]
[1767209483617,0.68522478,125.07,125.04,3.92173722]
[1767209483929,0.68522478,125.05,125.02,0.71885632]
[1767209486136,0.68522478,125.05,125.03,0.71885632]
[1767209489627,0.68522478,125.05,125.03,0.66247318]
[1767209491123,0.68522478,125.03,124.98,3.2028809]
[1767209491426,0.68522478,125.02,124.98,3.2028809]
[1767209491609,0.68522478,125.02,124.99,0.71885632]
[1767209494630,0.68522478,125.01,124.98,0.71885632]
[1767209495128,0.68522478,125.02,124.98,0.71885632]
[1767209497825,3.88810568,125.02,124.98,0.71885632]
[1767209498322,0.68522478,125.02,124.98,3.2028809]
[1767209498628,0.68522478,125.02,124.99,0.71885632]
[1767209506537,3.88810568,125.02,124.99,0.71885632]
[1767209507035,0.68522478,125.02,124.99,0.71885632]
[1767209507212,3.2028809,125.03,124.99,0.71885632]
[1767209507523,0.68522478,125.04,125.0,0.71885632]
[1767209507732,5.97492163,125.03,125.0,0.71885632]
[1767209507918,0.68522478,125.04,125.0,0.71885632]
[1767209508232,6.66014488,125.03,125.0,0.71885632]
[1767209508435,0.68522478,125.03,125.0,0.71885632]
[1767209512128,0.68522478,125.03,124.96,14.62]
[1767209512129,9.85893374,125.02,124.98,0.68383423]
[1767209512334,0.67971072,125.02,124.98,0.68383423]
[1767209513333,0.67971072,125.02,124.98,3.2028809]
[1767209513641,0.67971072,125.02,124.99,0.68383423]
[1767209520143,0.67971072,125.0,124.96,0.68383423]
[1767209520721,5.00276707,125.0,124.96,0.68383423]
[1767209520926,0.67971072,124.98,124.96,0.68383423]
[1767209521328,0.67971072,124.99,124.96,0.68383423]
[1767209521637,5.68247779,124.99,124.96,0.68383423]
[1767209522443,5.68247779,124.98,124.94,0.68383423]
[1767209523540,0.67971072,124.97,124.94,0.68383423]
[1767209524624,5.00276707,124.97,124.94,0.68383423]
[1767209524921,0.67971072,124.96,124.93,0.78383423]
[1767209525242,0.67971072,124.95,124.93,0.78383423]
[1767209526438,5.00276707,124.97,124.93,0.78383423]
[1767209526644,0.67971072,124.96,124.93,0.78383423]
[1767209526926,0.67971072,124.99,124.94,0.68383423]
[1767209527136,0.67971072,124.97,124.94,0.68383423]
[1767209527428,5.68247779,124.97,124.94,0.68383423]
[1767209528644,5.68247779,124.97,124.93,0.78383423]
[1767209528645,0.67971072,124.96,124.93,0.78383423]
[1767209529052,5.68247779,124.96,124.93,0.78383423]
[1767209529239,0.67971072,124.96,124.93,0.78383423]
[1767209530748,0.67971072,124.96,124.93,0.1]
[1767209530749,0.67971072,124.95,124.93,0.1]
[1767209531046,5.56242978,124.95,124.93,0.1]
[1767209531252,0.55966271,124.95,124.93,0.1]
[1767209532548,0.55966271,124.95,124.93,0.78383423]
[1767209533238,0.55966271,124.95,124.93,0.1]
[1767209534254,0.55966271,124.95,124.93,0.78383423]
[1767209536443,0.67971072,124.97,124.93,0.78383423]
[1767209536754,5.68247779,124.96,124.93,0.78383423]
[1767209538147,0.67971072,124.95,124.93,0.1]
[1767209539035,0.67971072,124.95,124.93,0.78383423]
[1767209539435,0.68210073,124.98,124.93,0.78383423]
[1767209539636,5.6848678,124.97,124.94,0.682544]
[1767209544059,5.6883767,124.97,124.94,0.682544]
[1767209544257,5.6883767,124.96,124.93,0.82083904]
[1767209545749,0.68560963,124.96,124.93,0.82083904]
[1767209545950,5.6883767,124.96,124.93,0.82083904]
[1767209547164,0.68560963,124.97,124.94,0.72083904]
[1767209547567,5.6883767,124.97,124.94,0.72083904]
[1767209549564,0.68560963,124.97,124.94,0.72083904]
[1767209549765,5.6883767,124.97,124.94,0.72083904]
[1767209550174,0.68560963,124.97,124.94,0.72083904]
[1767209550475,5.6883767,124.97,124.94,0.72083904]
[1767209555474,110.2883767,124.99,124.95,0.72083904]
[1767209555855,109.60276707,124.99,124.95,0.72083904]
[1767209556056,0.68560963,124.98,124.95,0.72083904]
[1767209556255,110.2883767,124.99,124.96,0.72083904]
[1767209556772,104.6,124.99,124.97,0.72083904]
[1767209557069,0.68560963,125.0,124.97,0.72083904]
[1767209558060,105.28560963,125.03,124.99,0.72083904]
[1767209558290,0.68560963,125.02,124.99,0.72083904]
[1767209558808,5.6883767,125.02,124.99,0.72083904]
[1767209560064,0.68560963,125.01,124.98,5.72360611]
[1767209560762,0.68560963,125.01,124.98,0.72083904]
[1767209561576,5.6883767,125.01,124.98,0.72083904]
[1767209562671,0.68560963,125.01,124.98,0.72083904]
[1767209562864,5.6883767,125.01,124.98,0.72083904]
[1767209566316,0.68560963,125.01,124.98,0.72083904]
[1767209569787,0.68560963,125.0,124.98,0.72083904]
[1767209570986,5.71880851,125.01,124.98,0.72083904]
[1767209571191,0.71604144,125.01,124.98,0.72083904]
[1767209572572,0.71604144,125.01,124.98,5.72360611]
[1767209573091,0.71604144,125.01,124.98,0.72083904]
[1767209573811,5.00276707,125.01,124.98,0.72083904]
[1767209573989,0.71604144,125.0,124.97,5.65798025]
[1767209575397,0.71604144,125.0,124.97,0.65521318]
[1767209578803,3.91888359,124.99,124.96,0.65521318]
[1767209578988,0.71604144,124.99,124.96,0.65521318]
[1767209580907,0.71604144,124.98,124.96,0.65521318]
[1767209581294,0.71604144,124.97,124.94,0.65521318]
[1767209583714,0.71604144,124.96,124.93,0.1]
[1767209583911,0.71604144,124.96,124.93,0.75521318]
[1767209585109,3.91888359,124.97,124.93,0.75521318]
[1767209586207,0.71604144,124.97,124.93,0.75521318]
[1767209586392,3.91888359,124.97,124.93,0.75521318]
[1767209590016,0.71604144,124.96,124.93,0.75521318]
[1767209590714,3.20284215,124.97,124.93,0.75521318]
[1767209590917,3.91888359,124.97,124.93,0.75521318]
[1767209596615,3.20284215,124.97,124.93,0.75521318]
[1767209596807,0.71604144,124.96,124.93,0.75521318]
[1767209603238,0.65410432,124.98,124.94,0.66840131]
[1767209603401,8.00033464,125.0,124.95,0.66840131]
[1767209603402,0.65410432,125.0,124.95,0.66840131]
[1767209603737,0.65410432,125.0,124.96,0.66840131]
[1767209603738,0.65410432,124.99,124.96,0.66840131]
[1767209604522,3.85694647,124.99,124.96,0.66840131]
[1767209604910,0.65410432,124.98,124.96,0.66840131]
[1767209606526,3.85694647,125.0,124.96,0.66840131]
[1767209606724,0.65410432,124.99,124.96,0.66840131]
[1767209609326,3.85694647,125.0,124.96,0.66840131]
[1767209609502,5.99169201,124.99,124.96,0.66840131]
[1767209609703,0.65410432,124.99,124.96,0.66840131]
[1767209613708,3.20284215,124.99,124.94,3.20284215]
[1767209613917,0.65410432,124.97,124.93,18.59124346]
[1767209614228,0.65410432,124.98,124.95,0.66840131]
[1767209616338,3.85694647,124.98,124.95,0.66840131]
[1767209618604,3.20284215,124.98,124.95,0.66840131]
[1767209618804,0.65410432,124.97,124.93,3.30284215]
[1767209619138,0.65410432,124.96,124.93,0.76840131]
[1767209619914,3.85694647,124.96,124.93,0.76840131]
[1767209620213,0.65410432,124.96,124.93,0.76840131]
[1767209622411,3.85694647,124.96,124.93,0.76840131]
[1767209622606,0.65410432,124.96,124.93,0.76840131]
[1767209624406,6.71684692,125.0,124.94,0.66840131]
[1767209624721,0.65410432,124.98,124.94,3.20284215]
[1767209624927,6.00607807,124.97,124.95,0.66840131]
[1767209625230,0.65410432,124.98,124.95,0.66840131]
[1767209625436,6.66020793,124.97,124.95,0.66840131]
[1767209625634,0.65410432,124.97,124.95,0.66840131]
[1767209635832,0.65410432,124.97,124.94,0.67104985]
[1767209641127,5.66084827,124.97,124.94,0.67104985]
[1767209641332,6.68122656,124.96,124.93,0.77104985]
[1767209641645,5.68237827,124.96,124.93,0.77104985]
[1767209641843,0.67563432,124.96,124.93,0.77104985]
[1767209644048,0.67563432,124.99,124.96,0.67104985]
[1767209644240,6.00472506,124.98,124.96,0.67104985]
[1767209644553,0.67563432,124.99,124.96,0.67104985]
[1767209644760,6.68038602,124.98,124.96,0.67104985]
[1767209644933,0.67563432,124.98,124.96,0.67104985]
[1767209645139,0.67563432,124.98,124.95,0.67104985]
[1767209646774,5.00674395,124.99,124.95,0.67104985]
[1767209646964,6.00488557,124.98,124.95,0.67104985]
[1767209647165,5.00674395,124.99,124.95,0.67104985]
[1767209647348,6.68067309,124.98,124.95,0.67104985]
[1767209647677,0.67563432,124.98,124.95,0.67104985]
[1767209651473,0.67563432,124.98,124.95,5.6777938]
[1767209653170,0.67563432,124.98,124.95,0.67104985]
[1767209653374,6.68147002,124.97,124.95,0.67104985]
[1767209653574,0.67563432,124.97,124.95,0.67104985]
[1767209659672,0.67563432,124.97,124.93,0.1]
[1767209659864,0.7149706,124.95,124.93,0.1]
[1767209660974,0.7149706,124.95,124.93,0.79414485]
[1767209662273,0.7149706,124.95,124.93,0.1]
[1767209663053,0.7149706,124.96,124.93,5.8008888]
[1767209663866,0.7149706,124.96,124.93,0.79414485]
[1767209664076,0.7149706,124.96,124.93,5.8008888]
[1767209666778,0.7149706,124.96,124.93,0.79414485]
[1767209670479,5.00674395,124.96,124.93,0.79414485]
[1767209670663,0.7149706,124.95,124.93,0.79414485]
[1767209670859,0.7149706,124.94,124.93,0.1]
[1767209671164,0.7149706,124.95,124.93,0.1]
[1767209672081,0.7149706,124.95,124.93,0.79414485]
[1767209672287,0.7149706,124.95,124.93,0.1]
[1767209672468,5.72171455,124.95,124.93,0.1]
[1767209676089,0.7149706,124.94,124.93,0.1]
[1767209676283,0.7149706,124.94,124.92,0.1]
[1767209676488,0.7149706,124.94,124.92,0.79414485]
[1767209679187,8.00226932,124.97,124.9,0.1]
[1767209679188,0.7149706,124.92,124.9,0.1]
[1767209680293,0.7149706,124.92,124.9,0.79414485]
[1767209680494,0.7149706,124.92,124.9,0.1]
[1767209680885,0.7149706,124.92,124.9,0.79414485]
[1767209684766,5.72171455,124.92,124.9,0.79414485]
[1767209685094,5.72171455,124.92,124.9,0.1]
[1767209690989,5.72171455,124.92,124.9,0.81367622]
[1767209694693,5.72171455,124.92,124.9,0.1]
[1767209698675,5.00674395,124.91,124.9,0.1]
[1767209698877,0.71486116,124.9,124.88,0.1]
[1767209699085,5.72160511,124.9,124.88,0.1]
[1767209700501,3.20723318,124.91,124.88,0.1]
[1767209700693,3.92209434,124.9,124.88,0.1]
[1767209701001,0.71486116,124.9,124.88,0.81367622]
[1767209701880,3.92209434,124.91,124.88,0.81367622]
[1767209704709,0.71486116,124.89,124.88,0.1]
[1767209705816,0.71486116,124.93,124.89,0.71367622]
[1767209705993,9.91484621,124.92,124.89,0.71367622]
[1767209706194,3.92209434,124.92,124.89,0.71367622]
[1767209706908,0.71486116,124.91,124.89,0.71367622]
[1767209707528,3.92209434,124.91,124.88,0.81367622]
[1767209707997,3.20723318,124.91,124.88,0.81367622]
[1767209708206,3.92209434,124.9,124.88,0.81367622]
[1767209708398,3.20723318,124.9,124.88,0.81367622]
[1767209712405,3.92209434,124.91,124.88,0.81367622]
[1767209713415,3.20723318,124.9,124.88,0.81367622]
[1767209718518,3.20723318,124.9,124.88,0.1]
[1767209718719,0.71486116,124.89,124.88,0.1]
[1767209720235,3.91403689,124.91,124.88,0.76043607]
[1767209720521,6.00356858,124.9,124.88,0.76043607]
[1767209720708,0.70680371,124.91,124.88,0.76043607]
[1767209720910,0.70680371,124.91,124.88,3.30723318]
[1767209721114,0.70680371,124.91,124.89,0.66043607]
[1767209721312,0.70680371,124.92,124.89,0.66043607]
[1767209721518,6.71087986,124.91,124.89,0.66043607]
[1767209721718,0.70680371,124.91,124.89,0.66043607]
[1767209722106,0.70680371,124.91,124.88,3.96766925]
[1767209723834,0.70680371,124.91,124.89,0.66043607]
[1767209729249,104.6,124.93,124.91,0.66043607]
[1767209729427,3.91403689,124.94,124.91,0.66043607]
[1767209729746,9.2145662,124.93,124.91,0.66043607]
[1767209729919,3.20723318,124.93,124.91,0.66043607]
[1767209730121,3.91403689,124.94,124.91,0.66043607]
[1767209730415,6.00700218,124.93,124.91,0.66043607]
[1767209730617,3.91403689,124.94,124.91,0.66043607]
[1767209730818,6.00700218,124.93,124.91,0.66043607]
[1767209731020,3.91403689,124.94,124.91,0.66043607]
[1767209731219,6.00656323,124.93,124.91,0.66043607]
[1767209731420,3.91403689,124.94,124.91,0.66043607]
[1767209731636,9.92052634,124.93,124.91,0.66043607]
[1767209731829,3.91403689,124.93,124.91,0.66043607]
[1767209732624,0.70680371,124.93,124.91,0.66043607]
[1767209739829,3.91403689,124.93,124.9,0.66043607]
[1767209743058,3.20723318,124.93,124.89,3.20723318]
[1767209743253,9.91931615,124.92,124.89,0.66043607]
[1767209743434,3.91403689,124.92,124.89,0.66043607]
[1767209743629,3.20723318,124.92,124.89,0.66043607]
[1767209743934,0.70680371,124.91,124.89,0.66043607]
[1767209745155,3.91403689,124.92,124.89,0.66043607]
[1767209753987,112.60420239,124.94,124.89,3.20723318]
[1767209753988,3.20723318,124.93,124.89,3.20723318]
[1767209754139,6.00582663,124.92,124.9,0.68433406]
[1767209754334,3.87020813,124.93,124.9,0.68433406]
[1767209754538,6.00587161,124.92,124.9,0.68433406]
[1767209754760,0.66297495,124.92,124.9,0.68433406]
[1767209759169,0.66297495,124.92,124.88,0.78433406]
[1767209759372,3.87020813,124.92,124.88,3.99156724]
[1767209759564,3.87020813,124.92,124.89,0.68433406]
[1767209760671,6.67015798,124.91,124.89,0.68433406]
[1767209760873,0.66297495,124.91,124.89,0.68433406]
[1767209761771,0.66297495,124.9,124.88,0.1]
[1767209762147,3.87020813,124.92,124.88,0.78433406]
[1767209762374,6.67103891,124.91,124.88,0.78433406]
[1767209762575,5.67509965,124.91,124.88,0.78433406]
[1767209763862,0.66297495,124.91,124.88,0.78433406]
[1767209764176,5.67509965,124.91,124.88,0.78433406]
[1767209767478,0.66297495,124.91,124.88,0.78433406]
[1767209767666,5.67509965,124.91,124.88,0.78433406]
[1767209768779,0.66297495,124.9,124.88,0.78433406]
[1767209769783,0.66297495,124.9,124.88,0.1]
[1767209769784,0.66297495,124.89,124.88,0.1]
[1767209770080,5.67509965,124.9,124.88,0.1]
[1767209771071,0.66297495,124.9,124.88,0.1]
[1767209771284,5.67509965,124.9,124.88,0.1]
[1767209772682,0.66297495,124.9,124.88,0.1]
[1767209775290,0.66297495,124.9,124.88,0.78433406]
[1767209775589,5.67509965,124.91,124.88,0.78433406]
[1767209775773,6.00709581,124.9,124.88,0.78433406]
[1767209775962,5.67509965,124.91,124.88,0.78433406]
[1767209776161,6.00709401,124.9,124.88,0.78433406]
[1767209776363,5.67509965,124.91,124.88,0.78433406]
[1767209776683,6.00709417,124.9,124.88,0.78433406]
[1767209776989,0.66297495,124.91,124.88,0.78433406]
[1767209778790,110.27509965,124.92,124.89,0.68433406]
[1767209778992,6.00707484,124.91,124.89,0.68433406]
[1767209779288,110.27509965,124.92,124.89,0.68433406]
[1767209779491,6.00738106,124.91,124.89,0.68433406]
[1767209779678,105.26297495,124.92,124.89,0.68433406]
[1767209779884,6.00738286,124.91,124.89,0.68433406]
[1767209780067,105.26297495,124.92,124.89,0.68433406]
[1767209780388,6.00758578,124.91,124.89,0.68433406]
[1767209780594,105.26297495,124.92,124.89,0.68433406]
[1767209780765,6.00771079,124.91,124.89,0.68433406]
[1767209780965,105.26297495,124.92,124.89,0.68433406]
[1767209781173,6.00771079,124.91,124.89,0.68433406]
[1767209781367,105.26297495,124.92,124.89,0.68433406]
[1767209781589,104.6,124.92,124.89,0.68433406]
[1767209782689,5.67631766,124.93,124.89,0.68433406]
[1767209782992,6.67258079,124.92,124.89,0.68433406]
[1767209783190,0.66419296,124.92,124.89,0.68433406]
[1767209784009,5.67631766,124.92,124.89,0.68433406]
[1767209785204,0.66419296,124.92,124.89,0.68433406]
[1767209785386,5.67631766,124.92,124.89,0.68433406]
[1767209788074,6.0104325,124.91,124.89,0.68433406]
[1767209788371,5.67631766,124.92,124.89,0.68433406]
[1767209788572,6.01046737,124.91,124.89,0.68433406]
[1767209788772,5.67631766,124.92,124.89,0.68433406]
[1767209788996,6.01046737,124.91,124.89,0.68433406]
[1767209789207,5.67631766,124.92,124.89,0.68433406]
[1767209789397,6.01045915,124.91,124.89,0.68433406]
[1767209789587,5.67631766,124.92,124.89,0.68433406]
[1767209789788,6.01045838,124.91,124.89,0.68433406]
[1767209789981,5.67631766,124.92,124.89,0.68433406]
[1767209790299,6.01044869,124.91,124.89,0.68433406]
[1767209790498,5.67631766,124.92,124.89,0.68433406]
[1767209790692,6.01044945,124.91,124.89,0.68433406]
[1767209790892,5.67631766,124.92,124.89,0.68433406]
[1767209791295,6.01044129,124.91,124.89,0.68433406]
[1767209791513,5.67631766,124.92,124.89,0.68433406]
[1767209791690,6.01050557,124.91,124.89,0.68433406]
[1767209791884,5.67631766,124.92,124.89,0.68433406]
[1767209792181,6.01050557,124.91,124.89,0.68433406]
[1767209792503,5.67631766,124.92,124.89,0.68433406]
[1767209792795,11.68681479,124.91,124.88,0.79296532]
[1767209793103,5.67631766,124.91,124.88,0.79296532]
[1767209794205,5.67631766,124.89,124.88,0.1]
[1767209794991,6.6751178,124.89,124.88,0.1]
[1767209796200,0.66419296,124.89,124.88,0.1]
[1767209797003,5.67631766,124.9,124.88,0.1]
[1767209797592,5.0121247,124.89,124.88,0.1]
[1767209797997,5.67631766,124.9,124.88,0.1]
[1767209798476,0.66419296,124.89,124.88,0.1]
[1767209802601,0.66419296,124.91,124.88,0.1]
[1767209802777,6.67196374,124.9,124.88,0.1]
[1767209802982,5.0121247,124.9,124.88,0.79296532]
[1767209803192,5.67631766,124.91,124.88,0.79296532]
[1767209803390,6.00777423,124.9,124.88,0.79296532]
[1767209803604,5.67631766,124.91,124.88,0.79296532]
[1767209803802,6.00777423,124.9,124.88,0.79296532]
[1767209804003,5.67631766,124.91,124.88,0.79296532]
[1767209804197,6.67196719,124.9,124.88,0.79296532]
[1767209804384,0.66419296,124.9,124.88,0.79296532]
[1767209807598,110.3050451,124.92,124.88,0.79296532]
[1767209807907,6.70036553,124.91,124.88,0.79296532]
[1767209808103,6.00744513,124.9,124.88,0.79296532]
[1767209808310,0.6929204,124.9,124.88,0.1]
[1767209808696,0.6929204,124.9,124.88,0.79047066]
[1767209810618,5.7050451,124.9,124.88,0.79047066]
[1767209811111,0.7152933,124.91,124.88,0.79047066]
[1767209811296,6.00698887,124.9,124.88,0.79047066]
[1767209811495,5.727418,124.91,124.88,0.79047066]
[1767209811795,6.00691723,124.9,124.88,0.79047066]
[1767209811995,5.727418,124.91,124.88,0.79047066]
[1767209812204,6.00691904,124.9,124.88,0.79047066]
[1767209812404,5.727418,124.91,124.88,0.79047066]
[1767209812605,6.00686577,124.9,124.88,0.79047066]
[1767209812806,5.727418,124.91,124.88,0.79047066]
[1767209813006,6.00686577,124.9,124.88,0.79047066]
[1767209813206,5.727418,124.91,124.88,0.79047066]
[1767209813504,6.0069051,124.9,124.88,0.79047066]
[1767209813702,5.727418,124.91,124.88,0.79047066]
[1767209815919,0.7152933,124.91,124.88,0.79047066]
[1767209816725,6.00663565,124.9,124.88,0.79047066]
[1767209816900,0.7152933,124.91,124.88,0.79047066]
[1767209817102,6.00663565,124.9,124.88,0.79047066]
[1767209817420,5.727418,124.91,124.88,0.79047066]
[1767209817607,6.00664531,124.9,124.88,0.79047066]
[1767209817798,5.727418,124.91,124.88,0.79047066]
[1767209818000,6.00664454,124.9,124.88,0.79047066]
[1767209818207,5.727418,124.91,124.88,0.79047066]
[1767209818415,6.00665446,124.9,124.88,0.79047066]
[1767209818606,5.727418,124.91,124.88,0.79047066]
[1767209818807,6.00665369,124.9,124.88,0.79047066]
[1767209819007,5.727418,124.91,124.88,0.79047066]
[1767209819210,6.00665369,124.9,124.88,0.79047066]
[1767209819415,0.7152933,124.91,124.88,0.79047066]
[1767209819614,6.00666394,124.9,124.88,0.79047066]
[1767209819811,0.7152933,124.91,124.88,0.79047066]
[1767209820011,6.00666394,124.9,124.88,0.79047066]
[1767209820211,0.7152933,124.91,124.88,0.79047066]
[1767209820412,6.0065301,124.9,124.88,0.79047066]
[1767209820625,0.7152933,124.91,124.88,0.79047066]
[1767209820920,0.7152933,124.93,124.89,5.0121247]
[1767209821328,0.7152933,124.93,124.9,5.0121247]
[1767209822629,3.92146254,124.94,124.9,3.20616924]
[1767209823126,0.7152933,124.94,124.91,3.20616924]
[1767209825726,0.7152933,124.91,124.88,0.1]
[1767209826721,0.7152933,124.9,124.88,0.1]
[1767209827631,3.92146254,124.91,124.88,0.1]
[1767209827835,0.7152933,124.9,124.88,0.1]
[1767209829040,3.92146254,124.9,124.88,0.1]
[1767209831333,0.7152933,124.9,124.88,0.1]
[1767209843720,3.92146254,124.9,124.88,0.1]
[1767209845842,0.66920725,124.88,124.87,0.1]
[1767209846140,0.66920725,124.87,124.86,0.1]
[1767209846942,0.66920725,124.88,124.86,0.1]
[1767209847147,0.66920725,124.88,124.86,0.3]
[1767209847321,0.66920725,124.88,124.86,0.1]
[1767209848537,0.66920725,124.88,124.86,0.3]
[1767209849240,0.66920725,124.88,124.86,0.1]
[1767209849449,3.87537649,124.88,124.86,0.1]
[1767209851959,3.87537649,124.92,124.88,0.2]
[1767209852253,6.67143457,124.91,124.88,0.2]
[1767209852423,0.66920725,124.91,124.88,0.2]
[1767209854252,0.66920725,124.91,124.88,3.40616924]
[1767209855151,111.35472679,124.95,124.9,3.40616924]
[1767209855328,6.67051524,124.94,124.9,3.40616924]
[1767209855529,6.00130799,124.93,124.9,3.40616924]
[1767209855745,6.67051524,124.93,124.9,3.40616924]
[1767209855946,0.66920725,124.93,124.9,3.40616924]
[1767209856125,0.66920725,124.94,124.9,3.40616924]
[1767209856339,6.66997624,124.93,124.9,3.40616924]
[1767209856545,0.66920725,124.93,124.9,3.40616924]
[1767209861465,0.66920725,124.93,124.9,0.2]
[1767209861632,0.66920725,124.93,124.9,3.40616924]
[1767209862552,0.66920725,124.93,124.9,0.2]
[1767209862746,0.66920725,124.93,124.9,3.40616924]
[1767209864871,0.66920725,124.94,124.91,3.40616924]
[1767209865036,5.99757371,124.93,124.91,3.40616924]
[1767209865238,0.66920725,124.94,124.91,3.40616924]
[1767209865450,5.99750834,124.93,124.91,0.2]
[1767209865651,0.66920725,124.94,124.91,0.2]
[1767209865843,0.66920725,124.94,124.91,3.40616924]
[1767209866043,0.66920725,124.94,124.91,0.2]
[1767209866636,5.9968918,124.93,124.91,0.2]
[1767209866834,0.66920725,124.93,124.9,3.20616924]
[1767209867363,0.66920725,124.93,124.9,3.40616924]
[1767209874771,0.66920725,124.93,124.91,3.20616924]
[1767209874956,0.66920725,124.93,124.9,3.40616924]
[1767209877766,0.66920725,124.93,124.89,3.40616924]
[1767209878679,0.66920725,124.93,124.89,3.20616924]
[1767209878850,0.66920725,124.93,124.89,3.40616924]
[1767209880162,0.66920725,124.93,124.89,3.20616924]
[1767209880668,0.71709917,124.91,124.88,14.84]
[1767209880976,0.71709917,124.91,124.88,18.04616924]
[1767209881270,0.71709917,124.91,124.88,3.40616924]
[1767209881773,0.71709917,124.91,124.87,0.2]
[1767209881971,0.71709917,124.91,124.88,3.20616924]
[1767209882970,0.71709917,124.91,124.88,5.2111287]
[1767209883541,0.71709917,124.91,124.87,0.2]
[1767209883748,0.71709917,124.91,124.87,5.2111287]
[1767209884364,0.71709917,124.89,124.86,5.1111287]
[1767209884764,0.71709917,124.89,124.86,5.3111287]
[1767209886368,0.71709917,124.9,124.87,0.2]
[1767209886553,8.00545429,124.92,124.88,5.2111287]
[1767209886554,0.71709917,124.92,124.88,5.2111287]
[1767209887270,0.71709917,124.91,124.87,5.2111287]
[1767209890078,5.0111287,124.91,124.87,5.2111287]
[1767209890275,0.71709917,124.9,124.87,5.2111287]
[1767209891174,0.71709917,124.9,124.87,0.2]
[1767209891562,5.0111287,124.91,124.86,5.1111287]
[1767209891563,0.71709917,124.88,124.86,0.1]
[1767209891859,0.71709917,124.87,124.86,0.1]
[1767209892783,0.71709917,124.86,124.85,6.74342724]
[1767209895383,5.72822787,124.87,124.85,6.74342724]
[1767209896157,0.71709917,124.87,124.85,6.74342724]
[1767209900754,0.71709917,124.87,124.85,11.75455594]
[1767209903386,5.70068305,124.89,124.86,0.3]
[1767209903681,0.68955435,124.88,124.85,12.05455594]
[1767209904786,0.68955435,124.88,124.85,11.75455594]
[1767209907164,0.68955435,124.88,124.85,6.74342724]
[1767209907889,5.0111287,124.89,124.85,6.74342724]
[1767209907890,0.68955435,124.86,124.85,6.74342724]
[1767209909669,5.0111287,124.88,124.85,6.74342724]
[1767209909869,0.68955435,124.87,124.85,6.74342724]
[1767209911981,0.68955435,124.87,124.85,7.04342724]
[1767209912885,0.68955435,124.87,124.85,6.74342724]
[1767209921704,112.60649814,124.9,124.83,14.64]
[1767209921705,0.68955435,124.85,124.83,14.64]
[1767209921909,0.68955435,124.85,124.83,15.33595586]
[1767209923709,0.68955435,124.86,124.83,15.33595586]
[1767209927410,0.68955435,124.86,124.83,20.34708456]
[1767209929214,0.68955435,124.89,124.84,5.70708456]
[1767209929387,0.68955435,124.87,124.84,5.70708456]
[1767209930284,0.68955435,124.87,124.84,0.69595586]
[1767209930512,0.68955435,124.87,124.84,5.70708456]
[1767209932790,0.68955435,124.87,124.84,0.69595586]
[1767209937303,5.0111287,124.87,124.84,0.69595586]
[1767209937504,0.72121579,124.86,124.84,0.69595586]
[1767209937808,0.72121579,124.86,124.83,19.6511287]
[1767209938009,0.72121579,124.86,124.83,14.64]
[1767209938606,0.72121579,124.86,124.83,15.34580711]
[1767209940598,0.72121579,124.84,124.82,0.1]
[1767209940800,0.72121579,124.84,124.82,14.74]
[1767209941225,0.72121579,124.84,124.82,0.1]
[1767209941425,0.72121579,124.84,124.78,8.01356207]
[1767209941426,0.72121579,124.82,124.78,0.70580711]
[1767209941720,0.72121579,124.81,124.78,15.34580711]
[1767209942109,0.72121579,124.81,124.79,0.70580711]
[1767209942309,5.0111287,124.82,124.79,0.70580711]
[1767209942497,0.72121579,124.81,124.78,15.34580711]
[1767209942697,0.72121579,124.81,124.79,0.70580711]
[1767209947009,0.72121579,124.84,124.79,3.91800304]
[1767209947208,0.72121579,124.82,124.79,3.91800304]
[1767209950615,0.72121579,124.86,124.82,0.70580711]
[1767209950826,9.92165827,124.85,124.82,0.70580711]